[Event "*** Titled Tuesday Blitz"]
[Site "Chess.com"]
[Date "2021.03.30"]
[Round "1"]
[White "Tacticus_Severus"]
[Black "crazyluzhinTh3"]
[Result "0-1"]
[WhiteElo "2051"]
[BlackElo "2498"]
[TimeControl "180+1"]
[EndTime "10:07:27 PDT"]
[Termination "crazyluzhinTh3 won by resignation"]

1. e4 {[%clk 0:02:56.3]} 1... d6 {[%clk 0:03:00.6]} 2. d4 {[%clk 0:02:53.7]}
2... Nf6 {[%clk 0:03:01]} 3. Nc3 {[%clk 0:02:53.3]} 3... g6 {[%clk 0:03:01.3]}
4. Nf3 {[%clk 0:02:52.9]} 4... Bg7 {[%clk 0:03:01.1]} 5. Be2 {[%clk 0:02:50.3]}
5... O-O {[%clk 0:03:01.4]} 6. O-O {[%clk 0:02:49.1]} 6... Nc6 {[%clk 0:03:02]}
7. Be3 {[%clk 0:02:44.3]} 7... e6 {[%clk 0:03:01.1]} 8. Qd2 {[%clk 0:02:43.2]}
8... b6 {[%clk 0:03:01.1]} 9. Rad1 {[%clk 0:02:33.2]} 9... Bb7 {[%clk 0:03:01]}
10. Bg5 {[%clk 0:02:32.9]} 10... Ne7 {[%clk 0:02:42.5]} 11. Bd3 {[%clk
0:02:24.1]} 11... a6 {[%clk 0:02:39.5]} 12. Qf4 {[%clk 0:02:18.3]} 12... Nd7
{[%clk 0:02:34.6]} 13. Qh4 {[%clk 0:02:06.9]} 13... f6 {[%clk 0:02:34.5]} 14.
Bh6 {[%clk 0:02:04.1]} 14... b5 {[%clk 0:02:25.8]} 15. Bxg7 {[%clk 0:01:52.5]}
15... Kxg7 {[%clk 0:02:26.7]} 16. Qh3 {[%clk 0:01:49.1]} 16... e5 {[%clk
0:02:12.5]} 17. dxe5 {[%clk 0:01:34.7]} 17... Nxe5 {[%clk 0:02:12.5]} 18. Nd4
{[%clk 0:01:27]} 18... Bc8 {[%clk 0:02:12.5]} 19. Ne6+ {[%clk 0:01:26.4]} 19...
Bxe6 {[%clk 0:02:12.4]} 20. Qxe6 {[%clk 0:01:27]} 20... Qd7 {[%clk 0:02:04.6]}
21. Qxd7 {[%clk 0:01:20.5]} 21... Nxd7 {[%clk 0:02:05.5]} 22. Rfe1 {[%clk
0:01:18.7]} 22... Rfe8 {[%clk 0:02:02.6]} 23. a3 {[%clk 0:01:05.4]} 23... Rab8
{[%clk 0:01:49.9]} 24. b4 {[%clk 0:01:01.6]} 24... Nb6 {[%clk 0:01:37.7]} 25. f4
{[%clk 0:00:56.3]} 25... h5 {[%clk 0:01:23]} 26. Kf2 {[%clk 0:00:55.7]} 26...
Red8 {[%clk 0:01:20.9]} 27. Kf3 {[%clk 0:00:49.6]} 27... Kf7 {[%clk 0:01:20]}
28. Ne2 {[%clk 0:00:45.1]} 28... c5 {[%clk 0:01:16.8]} 29. c3 {[%clk 0:00:40.2]}
29... Rbc8 {[%clk 0:01:16.1]} 30. Bb1 {[%clk 0:00:38.6]} 30... Nc4 {[%clk
0:01:10]} 31. Ba2 {[%clk 0:00:37.5]} 31... cxb4 {[%clk 0:01:02.2]} 32. axb4
{[%clk 0:00:35.1]} 32... d5 {[%clk 0:00:59.5]} 33. Nd4 {[%clk 0:00:28.5]} 33...
dxe4+ {[%clk 0:00:46.8]} 34. Rxe4 {[%clk 0:00:28]} 34... Ng8 {[%clk 0:00:37.3]}
35. Rde1 {[%clk 0:00:27.1]} 35... Rd7 {[%clk 0:00:28.6]} 36. Bb3 {[%clk
0:00:23.4]} 36... Ne7 {[%clk 0:00:25.5]} 37. Nc2 {[%clk 0:00:20.5]} 37... Nf5
{[%clk 0:00:23]} 38. Bxc4+ {[%clk 0:00:19.9]} 38... bxc4 {[%clk 0:00:20.6]} 39.
Nd4 {[%clk 0:00:18.7]} 39... Nxd4+ {[%clk 0:00:20]} 40. Rxd4 {[%clk 0:00:19]}
40... Rxd4 {[%clk 0:00:20.2]} 41. cxd4 {[%clk 0:00:19.8]} 41... c3 {[%clk
0:00:20.5]} 42. Rc1 {[%clk 0:00:20.1]} 42... Ke6 {[%clk 0:00:20.9]} 43. Ke4
{[%clk 0:00:20.2]} 43... c2 {[%clk 0:00:19.4]} 44. Kd3 {[%clk 0:00:20.3]} 44...
Kd5 {[%clk 0:00:19.7]} 45. Rxc2 {[%clk 0:00:20.4]} 45... Rxc2 {[%clk 0:00:19.3]}
46. Kxc2 {[%clk 0:00:21.3]} 46... Kxd4 {[%clk 0:00:19.4]} 47. Kb3 {[%clk
0:00:22.2]} 47... Kd3 {[%clk 0:00:18.4]} 48. Ka4 {[%clk 0:00:22.2]} 48... Kc4
{[%clk 0:00:19]} 49. Ka5 {[%clk 0:00:22.5]} 49... f5 {[%clk 0:00:19.3]} 50. h4
{[%clk 0:00:20.6]} 50... Kb3 {[%clk 0:00:19.3]} 51. Kxa6 {[%clk 0:00:20.8]}
51... Kxb4 {[%clk 0:00:19.6]} 52. Kb6 {[%clk 0:00:21.7]} 52... Kc4 {[%clk
0:00:20.2]} 53. Kc6 {[%clk 0:00:22.6]} 53... Kd4 {[%clk 0:00:20.8]} 54. Kd6
{[%clk 0:00:23.3]} 54... Ke4 {[%clk 0:00:21.4]} 55. g3 {[%clk 0:00:23.3]} 55...
Kf3 {[%clk 0:00:21.5]} 56. Ke5 {[%clk 0:00:23.6]} 56... Kxg3 {[%clk 0:00:22]}
0-1

[Event "*** Titled Tuesday Blitz"]
[Site "Chess.com"]
[Date "2021.03.30"]
[Round "1"]
[White "elextranjero00"]
[Black "OlifantCZ"]
[Result "1-0"]
[WhiteElo "2614"]
[BlackElo "2314"]
[TimeControl "180+1"]
[EndTime "10:07:31 PDT"]
[Termination "elextranjero00 won by resignation"]

1. d4 {[%clk 0:02:59.5]} 1... Nf6 {[%clk 0:02:59.4]} 2. c4 {[%clk 0:02:57.9]}
2... g6 {[%clk 0:02:58.9]} 3. Nc3 {[%clk 0:02:57.1]} 3... Bg7 {[%clk 0:02:59.3]}
4. e4 {[%clk 0:02:57.1]} 4... O-O {[%clk 0:02:59.8]} 5. Nf3 {[%clk 0:02:48.7]}
5... c5 {[%clk 0:02:52.7]} 6. Be2 {[%clk 0:02:37.6]} 6... cxd4 {[%clk
0:02:49.3]} 7. Nxd4 {[%clk 0:02:37.4]} 7... Nc6 {[%clk 0:02:49.9]} 8. Be3 {[%clk
0:02:36.5]} 8... d6 {[%clk 0:02:47.7]} 9. O-O {[%clk 0:02:35.8]} 9... Nxd4
{[%clk 0:02:46.2]} 10. Bxd4 {[%clk 0:02:35.5]} 10... Be6 {[%clk 0:02:46.8]} 11.
Rc1 {[%clk 0:02:25.3]} 11... Qa5 {[%clk 0:02:46.3]} 12. b3 {[%clk 0:02:16.5]}
12... Rfc8 {[%clk 0:02:43.5]} 13. f4 {[%clk 0:02:11.2]} 13... a6 {[%clk
0:02:38.2]} 14. Kh1 {[%clk 0:02:07.9]} 14... Rab8 {[%clk 0:02:26.9]} 15. f5
{[%clk 0:01:51.7]} 15... Bd7 {[%clk 0:02:25.5]} 16. Qd3 {[%clk 0:01:13.5]} 16...
Bc6 {[%clk 0:02:10.6]} 17. Nd5 {[%clk 0:01:06.2]} 17... Bxd5 {[%clk 0:02:08.9]}
18. exd5 {[%clk 0:01:06.3]} 18... b5 {[%clk 0:02:07.1]} 19. cxb5 {[%clk
0:00:48.9]} 19... axb5 {[%clk 0:02:06.2]} 20. Rxc8+ {[%clk 0:00:32.6]} 20...
Rxc8 {[%clk 0:02:05.2]} 21. Qxb5 {[%clk 0:00:32.7]} 21... Qxa2 {[%clk
0:02:04.3]} 22. Bc4 {[%clk 0:00:22.4]} 22... Ne4 {[%clk 0:00:37.2]} 23. Bg1
{[%clk 0:00:19]} 23... Bf6 {[%clk 0:00:34.8]} 24. fxg6 {[%clk 0:00:17.5]} 24...
hxg6 {[%clk 0:00:34.2]} 25. Qd7 {[%clk 0:00:17.7]} 25... Ra8 {[%clk 0:00:31.7]}
26. Qg4 {[%clk 0:00:17.6]} 26... Ng5 {[%clk 0:00:24.2]} 27. h3 {[%clk
0:00:16.7]} 27... Kg7 {[%clk 0:00:23.8]} 28. Bd4 {[%clk 0:00:14.3]} 28... Nh7
{[%clk 0:00:20.1]} 29. Bxf6+ {[%clk 0:00:10.4]} 29... Nxf6 {[%clk 0:00:19.8]}
30. Qf4 {[%clk 0:00:10.1]} 30... Ra7 {[%clk 0:00:19.1]} 31. Qe3 {[%clk 0:00:10]}
31... Qc2 {[%clk 0:00:16]} 32. Qxa7 {[%clk 0:00:09.4]} 32... Ne4 {[%clk
0:00:13]} 33. Qe3 {[%clk 0:00:09.4]} 33... f5 {[%clk 0:00:10.7]} 34. Kh2 {[%clk
0:00:05.5]} 34... Qb2 {[%clk 0:00:10.3]} 35. Bd3 {[%clk 0:00:04.9]} 35... Qe5+
{[%clk 0:00:10.2]} 36. Kg1 {[%clk 0:00:04.2]} 36... Qc3 {[%clk 0:00:08.4]} 37.
Re1 {[%clk 0:00:04.4]} 37... Qxb3 {[%clk 0:00:07.7]} 38. Bxe4 {[%clk 0:00:04.3]}
38... Qxe3+ {[%clk 0:00:07.8]} 39. Rxe3 {[%clk 0:00:05.2]} 39... fxe4 {[%clk
0:00:08.4]} 40. Rxe4 {[%clk 0:00:05.7]} 40... Kf6 {[%clk 0:00:09]} 41. Kf2
{[%clk 0:00:06.1]} 1-0

[Event "*** Titled Tuesday Blitz"]
[Site "Chess.com"]
[Date "2021.03.30"]
[Round "1"]
[White "stepakyedael"]
[Black "deribas12345"]
[Result "0-1"]
[WhiteElo "2297"]
[BlackElo "2591"]
[TimeControl "180+1"]
[EndTime "10:07:31 PDT"]
[Termination "deribas12345 won on time"]

1. d4 {[%clk 0:03:00.9]} 1... Nf6 {[%clk 0:02:59.1]} 2. c4 {[%clk 0:03:00.5]}
2... c5 {[%clk 0:02:57.5]} 3. d5 {[%clk 0:02:59.7]} 3... b5 {[%clk 0:02:57.3]}
4. cxb5 {[%clk 0:02:59.2]} 4... a6 {[%clk 0:02:57.4]} 5. b6 {[%clk 0:02:59.8]}
5... d6 {[%clk 0:02:57.4]} 6. Nc3 {[%clk 0:02:59.8]} 6... Nbd7 {[%clk
0:02:56.2]} 7. e4 {[%clk 0:02:59.5]} 7... Qxb6 {[%clk 0:02:55.1]} 8. a4 {[%clk
0:02:58.3]} 8... g6 {[%clk 0:02:54.6]} 9. a5 {[%clk 0:02:57.7]} 9... Qb4 {[%clk
0:02:54.2]} 10. Ra4 {[%clk 0:02:52.1]} 10... Qb7 {[%clk 0:02:53.6]} 11. Nf3
{[%clk 0:02:48]} 11... Bg7 {[%clk 0:02:53.2]} 12. Nd2 {[%clk 0:02:45.8]} 12...
O-O {[%clk 0:02:52.6]} 13. Ra3 {[%clk 0:02:45.4]} 13... Ne8 {[%clk 0:02:48.3]}
14. Nc4 {[%clk 0:02:40.3]} 14... Nc7 {[%clk 0:02:44.5]} 15. Rb3 {[%clk
0:02:39.9]} 15... Nb5 {[%clk 0:02:40.6]} 16. Na3 {[%clk 0:02:22.4]} 16... Qc7
{[%clk 0:02:38]} 17. Naxb5 {[%clk 0:02:12.8]} 17... axb5 {[%clk 0:02:35.3]} 18.
Nxb5 {[%clk 0:02:12.9]} 18... Qxa5+ {[%clk 0:02:34.1]} 19. Bd2 {[%clk
0:02:11.8]} 19... Qa4 {[%clk 0:02:25.2]} 20. Ra3 {[%clk 0:01:45.9]} 20... Qxe4+
{[%clk 0:02:23.1]} 21. Qe2 {[%clk 0:01:39.1]} 21... Qb1+ {[%clk 0:02:15]} 22.
Qd1 {[%clk 0:01:36.3]} 22... Qxd1+ {[%clk 0:02:05.3]} 23. Kxd1 {[%clk
0:01:35.7]} 23... Bb7 {[%clk 0:02:02.6]} 24. Bc4 {[%clk 0:01:29.2]} 24... Bxb2
{[%clk 0:02:00.3]} 25. Rb3 {[%clk 0:01:28.8]} 25... Ra1+ {[%clk 0:01:49.4]} 26.
Kc2 {[%clk 0:01:20.6]} 26... Rxh1 {[%clk 0:01:48.9]} 27. Rxb2 {[%clk 0:01:15.2]}
27... Nb6 {[%clk 0:01:49]} 28. Nxd6 {[%clk 0:01:02.8]} 28... Nxc4 {[%clk
0:01:44.7]} 29. Nxc4 {[%clk 0:00:54.6]} 29... Bxd5 {[%clk 0:01:44.1]} 30. Ne3
{[%clk 0:00:54.3]} 30... Be6 {[%clk 0:01:41.9]} 31. Rb7 {[%clk 0:00:50.1]} 31...
Re8 {[%clk 0:01:39.8]} 32. Bc3 {[%clk 0:00:44.9]} 32... Rxh2 {[%clk 0:01:38.2]}
33. Rc7 {[%clk 0:00:42.2]} 33... c4 {[%clk 0:01:37]} 34. Be5 {[%clk 0:00:40]}
34... Rh1 {[%clk 0:01:32.2]} 35. g4 {[%clk 0:00:35.8]} 35... h5 {[%clk
0:01:30.4]} 36. gxh5 {[%clk 0:00:32.3]} 36... gxh5 {[%clk 0:01:30.5]} 37. Ng2
{[%clk 0:00:31]} 37... Bf5+ {[%clk 0:01:19.4]} 38. Kc3 {[%clk 0:00:28.5]} 38...
f6 {[%clk 0:01:19.3]} 39. Bg3 {[%clk 0:00:26.7]} 39... Rc1+ {[%clk 0:01:13.9]}
40. Kd4 {[%clk 0:00:24.6]} 40... Rd8+ {[%clk 0:01:13.1]} 41. Ke3 {[%clk
0:00:24]} 41... c3 {[%clk 0:01:11.6]} 42. Rxe7 {[%clk 0:00:21.1]} 42... c2
{[%clk 0:01:08.7]} 43. Rc7 {[%clk 0:00:20.4]} 43... Rcd1 {[%clk 0:01:05.4]} 44.
Nh4 {[%clk 0:00:18.2]} 44... Bh7 {[%clk 0:00:49.1]} 45. Kf4 {[%clk 0:00:12.4]}
45... c1=Q+ {[%clk 0:00:45.3]} 46. Rxc1 {[%clk 0:00:11.9]} 46... Rxc1 {[%clk
0:00:46.2]} 47. Nf3 {[%clk 0:00:10.6]} 47... Rc4+ {[%clk 0:00:45.6]} 48. Ke3
{[%clk 0:00:10]} 48... Rd3+ {[%clk 0:00:46.5]} 49. Ke2 {[%clk 0:00:09.7]} 49...
Rc2+ {[%clk 0:00:46]} 50. Ke1 {[%clk 0:00:09.7]} 50... Rxf3 {[%clk 0:00:46]} 51.
Kd1 {[%clk 0:00:08.8]} 51... Rxg3 {[%clk 0:00:45.1]} 52. fxg3 {[%clk 0:00:07.9]}
52... Rg2 {[%clk 0:00:45]} 0-1

[Event "*** Titled Tuesday Blitz"]
[Site "Chess.com"]
[Date "2021.03.30"]
[Round "1"]
[White "swisspower96"]
[Black "Mili_Brizzi"]
[Result "1-0"]
[WhiteElo "2571"]
[BlackElo "2268"]
[TimeControl "180+1"]
[EndTime "10:07:33 PDT"]
[Termination "swisspower96 won on time"]

1. d4 {[%clk 0:03:00.9]} 1... d5 {[%clk 0:02:59.7]} 2. c4 {[%clk 0:03:01.1]}
2... c6 {[%clk 0:03:00.2]} 3. cxd5 {[%clk 0:03:00.7]} 3... cxd5 {[%clk
0:02:59.9]} 4. Bf4 {[%clk 0:03:01.4]} 4... Nf6 {[%clk 0:02:58]} 5. e3 {[%clk
0:03:01.1]} 5... Nc6 {[%clk 0:02:57.9]} 6. Nc3 {[%clk 0:03:01.1]} 6... Bf5
{[%clk 0:02:57.3]} 7. Nf3 {[%clk 0:02:52.9]} 7... e6 {[%clk 0:02:56.8]} 8. Be2
{[%clk 0:02:51.2]} 8... Be7 {[%clk 0:02:54.5]} 9. Qb3 {[%clk 0:02:50]} 9... O-O
{[%clk 0:02:08.4]} 10. Qxb7 {[%clk 0:02:43.8]} 10... Nb4 {[%clk 0:02:08.5]} 11.
O-O {[%clk 0:02:43]} 11... Nh5 {[%clk 0:02:08]} 12. Bc7 {[%clk 0:02:29.7]} 12...
Qc8 {[%clk 0:01:43]} 13. Qxc8 {[%clk 0:02:28.1]} 13... Rfxc8 {[%clk 0:01:42.9]}
14. Bg3 {[%clk 0:02:09]} 14... Nxg3 {[%clk 0:01:42]} 15. hxg3 {[%clk 0:02:09.9]}
15... Rab8 {[%clk 0:01:36]} 16. Rac1 {[%clk 0:02:01.7]} 16... Bd3 {[%clk
0:01:22.5]} 17. Rfe1 {[%clk 0:01:54.5]} 17... Bxe2 {[%clk 0:01:13]} 18. Rxe2
{[%clk 0:01:54.2]} 18... Nd3 {[%clk 0:01:04.5]} 19. Rcc2 {[%clk 0:01:50.1]}
19... f6 {[%clk 0:00:59]} 20. Na4 {[%clk 0:01:31.7]} 20... g5 {[%clk 0:00:37.5]}
21. b3 {[%clk 0:01:16.8]} 21... Nb4 {[%clk 0:00:18.6]} 22. Rcd2 {[%clk
0:01:06.7]} 22... Rc7 {[%clk 0:00:17.6]} 23. Ne1 {[%clk 0:00:58.2]} 23... Rbc8
{[%clk 0:00:17.6]} 24. g4 {[%clk 0:00:52.5]} 24... Rc1 {[%clk 0:00:17.2]} 25.
Kh2 {[%clk 0:00:51.8]} 25... Bd6+ {[%clk 0:00:15.9]} 26. g3 {[%clk 0:00:50.8]}
26... Kg7 {[%clk 0:00:15.2]} 27. a3 {[%clk 0:00:40.7]} 27... Na6 {[%clk
0:00:13.2]} 28. b4 {[%clk 0:00:37.2]} 28... Kg6 {[%clk 0:00:12.1]} 29. Nc5
{[%clk 0:00:28]} 29... Nxc5 {[%clk 0:00:10.3]} 30. dxc5 {[%clk 0:00:27.9]} 30...
Be5 {[%clk 0:00:10.4]} 31. Nd3 {[%clk 0:00:26.8]} 31... Ra1 {[%clk 0:00:09.8]}
32. Ra2 {[%clk 0:00:25.1]} 32... Rb1 {[%clk 0:00:08.6]} 33. Nxe5+ {[%clk
0:00:23.3]} 33... fxe5 {[%clk 0:00:09.5]} 34. Rab2 {[%clk 0:00:24]} 34... Ra1
{[%clk 0:00:09]} 35. Rb3 {[%clk 0:00:23.6]} 35... h5 {[%clk 0:00:07.9]} 36.
gxh5+ {[%clk 0:00:23.3]} 36... Kxh5 {[%clk 0:00:08.2]} 37. Kg2 {[%clk
0:00:24.1]} 37... g4 {[%clk 0:00:07.3]} 38. Rc2 {[%clk 0:00:24.5]} 38... Kg5
{[%clk 0:00:06.4]} 39. Rbc3 {[%clk 0:00:22.1]} 39... Rh8 {[%clk 0:00:06.4]} 40.
Rc1 {[%clk 0:00:22.6]} 40... Ra2 {[%clk 0:00:06]} 41. c6 {[%clk 0:00:23]} 41...
d4 {[%clk 0:00:04.3]} 42. exd4 {[%clk 0:00:22.1]} 42... exd4 {[%clk 0:00:04.3]}
43. Rc5+ {[%clk 0:00:22.9]} 43... Kf6 {[%clk 0:00:03]} 44. c7 {[%clk 0:00:23]}
44... Rc8 {[%clk 0:00:02.5]} 45. R1c4 {[%clk 0:00:22.6]} 45... Rxa3 {[%clk
0:00:02.7]} 46. Rxd4 {[%clk 0:00:22.8]} 1-0

[Event "*** Titled Tuesday Blitz"]
[Site "Chess.com"]
[Date "2021.03.30"]
[Round "1"]
[White "Srisshhhtea"]
[Black "Sadykov_Ramil"]
[Result "1/2-1/2"]
[WhiteElo "2322"]
[BlackElo "2605"]
[TimeControl "180+1"]
[EndTime "10:07:39 PDT"]
[Termination "Game drawn by repetition"]

1. e4 {[%clk 0:03:00.9]} 1... c5 {[%clk 0:02:57.9]} 2. Nf3 {[%clk 0:03:00.1]}
2... e6 {[%clk 0:02:53.9]} 3. d3 {[%clk 0:02:58.9]} 3... Nc6 {[%clk 0:02:53.3]}
4. Be2 {[%clk 0:02:58.8]} 4... Nf6 {[%clk 0:02:51]} 5. O-O {[%clk 0:02:58]} 5...
d5 {[%clk 0:02:50.9]} 6. Nbd2 {[%clk 0:02:54.6]} 6... Be7 {[%clk 0:02:47]} 7. c3
{[%clk 0:02:50.8]} 7... e5 {[%clk 0:02:46.6]} 8. Qc2 {[%clk 0:02:45.2]} 8... O-O
{[%clk 0:02:45.9]} 9. a3 {[%clk 0:02:38.1]} 9... h6 {[%clk 0:02:39]} 10. b4
{[%clk 0:02:31.4]} 10... a6 {[%clk 0:02:36]} 11. Rb1 {[%clk 0:02:29.9]} 11... b5
{[%clk 0:02:29.9]} 12. Rd1 {[%clk 0:02:20.6]} 12... Be6 {[%clk 0:02:26.6]} 13.
Bf1 {[%clk 0:02:04.5]} 13... Rc8 {[%clk 0:02:25.8]} 14. Qb2 {[%clk 0:02:01.2]}
14... Qb6 {[%clk 0:02:22.7]} 15. Re1 {[%clk 0:01:49.7]} 15... d4 {[%clk
0:02:13.9]} 16. cxd4 {[%clk 0:01:42.8]} 16... cxd4 {[%clk 0:02:06.7]} 17. Nb3
{[%clk 0:01:42.3]} 17... Nd7 {[%clk 0:02:02.3]} 18. Bd2 {[%clk 0:01:40.7]} 18...
Rc7 {[%clk 0:01:55.5]} 19. Rbc1 {[%clk 0:01:38.6]} 19... Rfc8 {[%clk 0:01:51.4]}
20. h3 {[%clk 0:01:37.1]} 20... Bd6 {[%clk 0:01:45.4]} 21. Nh4 {[%clk
0:01:34.6]} 21... Ne7 {[%clk 0:01:38.4]} 22. Na5 {[%clk 0:01:29]} 22... Kh7
{[%clk 0:01:28.1]} 23. Be2 {[%clk 0:01:20.8]} 23... f6 {[%clk 0:01:19.4]} 24.
Bg4 {[%clk 0:01:15]} 24... Nf8 {[%clk 0:01:17.9]} 25. Bxe6 {[%clk 0:01:04.4]}
25... Nxe6 {[%clk 0:01:18.8]} 26. Nf5 {[%clk 0:01:04.5]} 26... Nxf5 {[%clk
0:01:14.9]} 27. exf5 {[%clk 0:01:05.4]} 27... Nf8 {[%clk 0:01:11.4]} 28. g4
{[%clk 0:00:55.9]} 28... Nd7 {[%clk 0:01:05.4]} 29. Qb3 {[%clk 0:00:54.6]} 29...
Rxc1 {[%clk 0:01:02.9]} 30. Rxc1 {[%clk 0:00:55.5]} 30... Rxc1+ {[%clk 0:01:02]}
31. Bxc1 {[%clk 0:00:56.4]} 31... Qc7 {[%clk 0:01:01.5]} 32. Bd2 {[%clk
0:00:55.3]} 32... e4 {[%clk 0:00:57.8]} 33. dxe4 {[%clk 0:00:53]} 33... Bf4
{[%clk 0:00:55.4]} 34. Qd1 {[%clk 0:00:27]} 34... Bxd2 {[%clk 0:00:51.9]} 35.
Qxd2 {[%clk 0:00:27.9]} 35... Ne5 {[%clk 0:00:50.7]} 36. Kg2 {[%clk 0:00:26.3]}
36... d3 {[%clk 0:00:50.3]} 37. Nb3 {[%clk 0:00:18.9]} 37... Qc4 {[%clk
0:00:48.1]} 38. Nc5 {[%clk 0:00:18.4]} 38... Qc2 {[%clk 0:00:47.3]} 39. Qxc2
{[%clk 0:00:13]} 39... dxc2 {[%clk 0:00:48.2]} 40. Nb3 {[%clk 0:00:13]} 40...
Nd3 {[%clk 0:00:47.8]} 41. Kf3 {[%clk 0:00:13.2]} 41... c1=Q {[%clk 0:00:44.2]}
42. Nxc1 {[%clk 0:00:13.5]} 42... Nxc1 {[%clk 0:00:45.1]} 43. Ke3 {[%clk
0:00:13.4]} 43... h5 {[%clk 0:00:36.1]} 44. f3 {[%clk 0:00:12.1]} 44... hxg4
{[%clk 0:00:30.1]} 45. hxg4 {[%clk 0:00:11.4]} 45... Kg8 {[%clk 0:00:29.4]} 46.
Kd2 {[%clk 0:00:10.2]} 46... Nb3+ {[%clk 0:00:28.8]} 47. Kc3 {[%clk 0:00:10.3]}
47... Nc1 {[%clk 0:00:28.9]} 48. Kd2 {[%clk 0:00:10.5]} 48... Nb3+ {[%clk
0:00:28]} 49. Kc3 {[%clk 0:00:10.8]} 49... Nc1 {[%clk 0:00:28.3]} 50. Kd2 {[%clk
0:00:10.9]} 1/2-1/2

[Event "*** Titled Tuesday Blitz"]
[Site "Chess.com"]
[Date "2021.03.30"]
[Round "1"]
[White "kamilianin235"]
[Black "Lenyas66"]
[Result "1-0"]
[WhiteElo "2262"]
[BlackElo "2535"]
[TimeControl "180+1"]
[EndTime "10:07:39 PDT"]
[Termination "kamilianin235 won on time"]

1. e4 {[%clk 0:03:00.9]} 1... c5 {[%clk 0:02:59.2]} 2. Nf3 {[%clk 0:02:58.8]}
2... Nc6 {[%clk 0:02:59.2]} 3. Bb5 {[%clk 0:02:57.7]} 3... Nd4 {[%clk
0:02:58.9]} 4. Nxd4 {[%clk 0:02:56.3]} 4... cxd4 {[%clk 0:02:58.8]} 5. c3 {[%clk
0:02:51.5]} 5... Qb6 {[%clk 0:02:55]} 6. Be2 {[%clk 0:02:49.7]} 6... Qg6 {[%clk
0:02:49]} 7. d3 {[%clk 0:02:30]} 7... Qxg2 {[%clk 0:02:14.9]} 8. Bf3 {[%clk
0:02:24.6]} 8... Qg6 {[%clk 0:02:14.2]} 9. cxd4 {[%clk 0:02:05.6]} 9... Qb6
{[%clk 0:02:08]} 10. Be3 {[%clk 0:01:57]} 10... e6 {[%clk 0:02:03.6]} 11. O-O
{[%clk 0:01:47.8]} 11... Nf6 {[%clk 0:02:00.6]} 12. Nd2 {[%clk 0:01:46.2]} 12...
d5 {[%clk 0:01:59.3]} 13. Re1 {[%clk 0:01:41.2]} 13... Be7 {[%clk 0:01:55.5]}
14. Rc1 {[%clk 0:01:29.9]} 14... O-O {[%clk 0:01:53.1]} 15. Bg5 {[%clk
0:01:22.8]} 15... h6 {[%clk 0:01:44.1]} 16. Bh4 {[%clk 0:01:21.4]} 16... Qxd4
{[%clk 0:01:19.6]} 17. Nb3 {[%clk 0:01:17.7]} 17... Qa4 {[%clk 0:01:19.3]} 18.
Kh1 {[%clk 0:00:58.3]} 18... dxe4 {[%clk 0:01:17.3]} 19. dxe4 {[%clk 0:00:56.6]}
19... e5 {[%clk 0:01:13.8]} 20. Rc7 {[%clk 0:00:53.9]} 20... Rd8 {[%clk
0:01:06.1]} 21. Qe2 {[%clk 0:00:51.4]} 21... Bd6 {[%clk 0:01:01.3]} 22. Rc4
{[%clk 0:00:48.7]} 22... Qa6 {[%clk 0:00:57.2]} 23. Bxf6 {[%clk 0:00:44.6]}
23... gxf6 {[%clk 0:00:57]} 24. Bg4 {[%clk 0:00:41.2]} 24... Kf8 {[%clk
0:00:52.7]} 25. Rec1 {[%clk 0:00:38.3]} 25... Ke7 {[%clk 0:00:31.5]} 26. Qf3
{[%clk 0:00:26]} 26... Bd7 {[%clk 0:00:26.7]} 27. Nd2 {[%clk 0:00:22.6]} 27...
Bb5 {[%clk 0:00:23]} 28. R4c3 {[%clk 0:00:20.7]} 28... Qb6 {[%clk 0:00:18.8]}
29. Nf1 {[%clk 0:00:20.2]} 29... Bc6 {[%clk 0:00:17.3]} 30. Ne3 {[%clk
0:00:19.8]} 30... Bb4 {[%clk 0:00:15.7]} 31. R3c2 {[%clk 0:00:17.7]} 31... Rd4
{[%clk 0:00:13.9]} 32. Nf5+ {[%clk 0:00:17.4]} 32... Ke8 {[%clk 0:00:12.1]} 33.
Nxd4 {[%clk 0:00:17.8]} 33... Qxd4 {[%clk 0:00:12.1]} 34. a3 {[%clk 0:00:17.9]}
34... Bxe4 {[%clk 0:00:10.7]} 35. Rc8+ {[%clk 0:00:17.6]} 35... Rxc8 {[%clk
0:00:09.3]} 36. Rxc8+ {[%clk 0:00:17.8]} 36... Ke7 {[%clk 0:00:09]} 37. axb4
{[%clk 0:00:18]} 37... Bxf3+ {[%clk 0:00:07.2]} 38. Bxf3 {[%clk 0:00:18.3]}
38... e4 {[%clk 0:00:07.3]} 39. Bg4 {[%clk 0:00:15.8]} 39... Qxf2 {[%clk
0:00:06.9]} 40. Rc7+ {[%clk 0:00:13.5]} 40... Kd6 {[%clk 0:00:06.6]} 41. Rc1
{[%clk 0:00:14.1]} 41... f5 {[%clk 0:00:06.1]} 42. Bh3 {[%clk 0:00:13.2]} 42...
e3 {[%clk 0:00:05.6]} 43. Rf1 {[%clk 0:00:13.3]} 1-0